fUST/lending_fUST_20250905
["ID","MTS","AMOUNT","RATE_DAILY","PERIOD"]
[383664149,1757077848676,-369.34,0.00013972,2]
[383664151,1757077848686,-480.0,0.00013972,2]
[383664153,1757077848695,-480.0,0.00013972,2]
[383664155,1757077848705,-480.0,0.00013972,2]
[383664157,1757077848714,-480.0,0.00013972,2]
[383664159,1757077848723,-266.9,0.00013972,2]
[383664160,1757077848733,-480.0,0.00013972,2]
[383664161,1757077848743,-480.0,0.00013972,2]
[383664163,1757077848752,-480.0,0.00013972,2]
[383664165,1757077848761,-480.0,0.00013972,2]
[383664167,1757077848771,-480.0,0.00013972,2]
[383664169,1757077848781,-480.0,0.00013972,2]
[383664171,1757077848790,-480.0,0.00013972,2]
[383664173,1757077848800,-480.0,0.00013972,2]
[383664175,1757077848810,-311.37,0.00013972,2]
[383664177,1757077848819,-554.46921339,0.00013972,2]
[383664179,1757077848829,-544.54,0.00013972,2]
[383664181,1757077848838,-480.0,0.00013972,2]
[383664183,1757077848847,-480.0,0.00013972,2]
[383664185,1757077848857,-480.0,0.00013972,2]
[383664187,1757077848866,-480.0,0.00013972,2]
[383664189,1757077848875,-393.02,0.00013972,2]
[383664191,1757077848885,-375.12,0.00013972,2]
[383664193,1757077848895,-480.0,0.00013972,2]
[383664195,1757077848906,-243.3,0.00013972,2]
[383664197,1757077848915,-480.0,0.00013972,2]
[383664199,1757077848925,-480.0,0.00013972,2]
[383664201,1757077848934,-292.01,0.00013972,2]
[383664203,1757077848944,-480.0,0.00013972,2]
[383664205,1757077848954,-480.0,0.00013972,2]
[383664207,1757077848963,-480.0,0.00013972,2]
[383664209,1757077848973,-552.69,0.00013972,2]
[383664211,1757077848983,-480.0,0.00013972,2]
[383664213,1757077848993,-558.26,0.00013972,2]
[383664215,1757077849002,-480.0,0.00013972,2]
[383664217,1757077849011,-480.0,0.00013972,2]
[383664219,1757077849021,-480.0,0.00013972,2]
[383664221,1757077849030,-982.97,0.00013972,2]
[383664223,1757077849040,-480.0,0.00013972,2]
[383664225,1757077849049,-457.12946167,0.00013972,2]
[383664227,1757077849059,-480.0,0.00013972,2]
[383664229,1757077849069,-480.0,0.00013972,2]
[383664231,1757077849078,-480.0,0.00013972,2]
[383664233,1757077849088,-480.0,0.00013972,2]
[383664235,1757077849098,-480.0,0.00013972,2]
[383664237,1757077849108,-480.0,0.00013972,2]
[383664239,1757077849118,-480.0,0.00013972,2]
[383664241,1757077849127,-480.0,0.00013972,2]
[383664243,1757077849137,-480.0,0.00013972,2]
[383664245,1757077849146,-480.0,0.00013972,2]
[383664247,1757077849160,-480.0,0.00013972,2]
[383664249,1757077849170,-480.0,0.00013972,2]
[383664251,1757077849179,-480.0,0.00013972,2]
[383664253,1757077849189,-480.0,0.00013972,2]
[383664255,1757077849199,-480.0,0.00013972,2]
[383664257,1757077849208,-480.0,0.00013972,2]
[383664259,1757077849217,-480.0,0.00013972,2]
[383664261,1757077849226,-480.0,0.00013972,2]
[383664263,1757077849236,-480.0,0.00013972,2]
[383664265,1757077849246,-1342.83,0.00013972,2]
[383664267,1757077849255,-811.82,0.00013972,2]
[383664269,1757077849265,-480.0,0.00013972,2]
[383664271,1757077849275,-767.37,0.00013972,2]
[383664273,1757077849285,-599.47,0.00013972,2]
[383664275,1757077849294,-1306.98,0.00013972,2]
[383664277,1757077849304,-480.0,0.00013972,2]
[383664279,1757077849314,-480.0,0.00013972,2]
[383664281,1757077849323,-693.8,0.00013972,2]
[383664283,1757077849333,-480.0,0.00013972,2]
[383664285,1757077849343,-480.0,0.00013972,2]
[383664299,1757077849460,-2895.42,0.00013972,2]
[383664301,1757077849472,-480.0,0.00013972,2]
[383664303,1757077849483,-480.0,0.00013972,2]
[383664305,1757077849493,-150.73,0.00013972,2]
[383664307,1757077849502,-480.0,0.00013972,2]
[383664309,1757077849511,-480.0,0.00013972,2]
[383664311,1757077849522,-480.0,0.00013972,2]
[383664313,1757077849531,-297.76,0.00013972,2]
[383664315,1757077849541,-2156.32,0.00013972,2]
[383664317,1757077849552,-480.0,0.00013972,2]
[383664319,1757077849561,-293.34,0.00013972,2]
[383664321,1757077849571,-480.24,0.00013972,2]
[383664322,1757077849580,-480.0,0.00013972,2]
[383664324,1757077849590,-480.0,0.00013972,2]
[383664326,1757077849599,-588.61,0.00013972,2]
[383664328,1757077849609,-480.0,0.00013972,2]
[383664330,1757077849618,-480.0,0.00013972,2]
[383664332,1757077849627,-792.8,0.00013972,2]
[383664334,1757077849637,-480.0,0.00013972,2]
[383664336,1757077849646,-536.64,0.00013972,2]
[383664338,1757077849657,-480.0,0.00013972,2]
[383664340,1757077849666,-480.0,0.00013972,2]
[383664342,1757077849675,-480.0,0.00013972,2]
[383664344,1757077849685,-480.0,0.00013972,2]
[383664346,1757077849694,-694.08,0.00013972,2]
[383664348,1757077849703,-480.0,0.00013972,2]
[383664350,1757077849713,-480.0,0.00013972,2]
[383664352,1757077849722,-480.0,0.00013972,2]
[383664354,1757077849731,-480.0,0.00013972,2]
[383664356,1757077849741,-480.0,0.00013972,2]
[383664359,1757077849751,-480.0,0.00013972,2]
[383664361,1757077849762,-480.0,0.00013972,2]
[383664362,1757077849771,-480.0,0.00013972,2]
[383664365,1757077849781,-947.95,0.00013972,2]
[383664367,1757077849790,-480.0,0.00013972,2]
[383664369,1757077849799,-480.0,0.00013972,2]
[383664370,1757077849809,-520.87,0.00013972,2]
[383664373,1757077849818,-8196.03,0.00013972,2]
[383664375,1757077849828,-480.0,0.00013972,2]
[383664377,1757077849837,-480.0,0.00013972,2]
[383664379,1757077849846,-893.8,0.00013972,2]
[383664381,1757077849855,-480.0,0.00013972,2]
[383664383,1757077849865,-480.0,0.00013972,2]
[383664385,1757077849875,-480.0,0.00013972,2]
[383664387,1757077849884,-480.0,0.00013972,2]
[383664389,1757077849893,-480.0,0.00013972,2]
[383664391,1757077849902,-480.0,0.00013972,2]
[383664393,1757077849913,-480.0,0.00013972,2]
[383664395,1757077849922,-500.82587803,0.00013973,2]
[383664397,1757077849932,-502.2713215,0.00013973,2]
[383664399,1757077849940,-500.0,0.00013973,2]
[383664400,1757077849950,-500.0,0.00013973,2]
[383664402,1757077849960,-500.0,0.00013973,2]
[383664405,1757077849981,-500.0,0.00013973,2]
[383664407,1757077849992,-500.0,0.00013973,2]
[383664409,1757077850002,-100000.0,0.0001399,2]
[383664411,1757077850017,-203.18701864,0.00014186,2]
[383664413,1757077850034,-160.0,0.00014186,2]
[383664415,1757077850044,-846.49761657,0.00014186,2]
[383664417,1757077850054,-217.560113,0.00014186,2]
[383664419,1757077850063,-417.15472785,0.00014186,2]
[383664421,1757077850073,-530.48792916,0.00014186,2]
[383664422,1757077850082,-232.96244142,0.00014186,2]
[383664424,1757077850093,-160.0,0.00014186,2]
[383664426,1757077850103,-160.0,0.00014186,2]
[383664429,1757077850113,-160.0,0.00014186,2]
[383664431,1757077850123,-900.0,0.000142,2]
[383664432,1757077850133,-500.0,0.00014245,2]
[383664435,1757077850142,-500.0,0.00014245,2]
[383664437,1757077850152,-500.0,0.00014245,2]
[383664438,1757077850163,-500.0,0.00014245,2]
[383664440,1757077850172,-500.0,0.00014245,2]
[383664442,1757077850182,-500.0,0.00014245,2]
[383664444,1757077850191,-500.0,0.00014245,2]
[383664447,1757077850200,-187.0456155,0.00014245,2]
[383664448,1757077850210,-480.0,0.00014246,2]
[383664450,1757077850219,-480.0,0.00014246,2]
[383664452,1757077850228,-480.0,0.00014246,2]
[383664454,1757077850237,-480.0,0.00014246,2]
[383664456,1757077850247,-480.0,0.00014246,2]
[383664458,1757077850256,-193.03,0.00014246,2]
[383664460,1757077850266,-272.65,0.00014246,2]
[383664462,1757077850275,-480.0,0.00014246,2]
[383664464,1757077850285,-563.55,0.00014246,2]
[383664466,1757077850294,-480.0,0.00014246,2]
[383664468,1757077850303,-348.23786816,0.00014246,2]
[383664470,1757077850312,-480.0,0.00014246,2]
[383664472,1757077850322,-480.0,0.00014246,2]
[383664474,1757077850332,-480.82,0.00014246,2]
[383664476,1757077850341,-480.0,0.00014246,2]
[383664478,1757077850351,-614.41,0.00014246,2]
[383664480,1757077850360,-480.0,0.00014246,2]
[383664482,1757077850369,-480.0,0.00014246,2]
[383664484,1757077850379,-480.0,0.00014246,2]
[383664486,1757077850389,-480.0,0.00014246,2]
[383664488,1757077850399,-480.0,0.00014246,2]
[383664491,1757077850410,-480.0,0.00014246,2]
[383664493,1757077850419,-480.0,0.00014246,2]
[383664495,1757077850428,-480.0,0.00014246,2]
[383664497,1757077850437,-480.0,0.00014246,2]
[383664499,1757077850447,-410.97,0.00014246,2]
[383664501,1757077850456,-480.0,0.00014246,2]
[383664503,1757077850465,-480.0,0.00014246,2]
[383664505,1757077850477,-480.0,0.00014246,2]
[383664507,1757077850486,-480.0,0.00014246,2]
[383664509,1757077850496,-480.0,0.00014246,2]
[383664511,1757077850505,-480.0,0.00014246,2]
[383664513,1757077850514,-167.70607579,0.00014246,2]
[383664515,1757077850525,-492.94,0.00014246,2]
[383664517,1757077850534,-480.0,0.00014246,2]
[383664519,1757077850543,-480.0,0.00014246,2]
[383664521,1757077850555,-480.0,0.00014246,2]
[383664523,1757077850565,-480.0,0.00014246,2]
[383664525,1757077850573,-480.0,0.00014246,2]
[383664527,1757077850583,-480.0,0.00014246,2]
[383664529,1757077850592,-480.0,0.00014246,2]
[383664531,1757077850601,-552.69,0.00014246,2]
[383664533,1757077850611,-480.0,0.00014246,2]
[383664535,1757077850620,-480.0,0.00014246,2]
[383664537,1757077850630,-578.62,0.00014246,2]
[383664539,1757077850639,-480.0,0.00014246,2]
[383664541,1757077850648,-982.97,0.00014246,2]
[383664543,1757077850658,-480.0,0.00014246,2]
[383664545,1757077850668,-480.0,0.00014246,2]
[383664547,1757077850677,-480.0,0.00014246,2]
[383664549,1757077850686,-304.64,0.00014246,2]
[383664551,1757077850695,-480.0,0.00014246,2]
[383664553,1757077850704,-480.0,0.00014246,2]
[383664555,1757077850714,-314.44,0.00014246,2]
[383664557,1757077850724,-480.0,0.00014246,2]
[383664559,1757077850733,-480.0,0.00014246,2]
[383664561,1757077850743,-480.0,0.00014246,2]
[383664563,1757077850752,-480.0,0.00014246,2]
[383664565,1757077850762,-480.0,0.00014246,2]
[383664568,1757077850773,-332.58,0.00014246,2]
[383664570,1757077850782,-480.0,0.00014246,2]
[383664572,1757077850791,-481.41,0.00014246,2]
[383664574,1757077850800,-480.0,0.00014246,2]
[383664576,1757077850809,-480.0,0.00014246,2]
[383664578,1757077850819,-480.0,0.00014246,2]
[383664580,1757077850828,-480.0,0.00014246,2]
[383664582,1757077850838,-230.12,0.00014246,2]
[383664584,1757077850847,-1342.83,0.00014246,2]
[383664586,1757077850856,-811.82,0.00014246,2]
[383664588,1757077850866,-480.0,0.00014246,2]
[383664590,1757077850875,-767.37,0.00014246,2]
[383664592,1757077850885,-599.47,0.00014246,2]
[383664594,1757077850894,-1306.98,0.00014246,2]
[383664596,1757077850903,-480.0,0.00014246,2]
[383664598,1757077850913,-480.0,0.00014246,2]
[383664600,1757077850922,-693.8,0.00014246,2]
[383664602,1757077850931,-151.12,0.00014246,2]
[383664604,1757077850940,-480.0,0.00014246,2]
[383664606,1757077850950,-2895.42,0.00014246,2]
[383664608,1757077850959,-480.0,0.00014246,2]
[383664610,1757077850968,-480.0,0.00014246,2]
[383664612,1757077850978,-480.0,0.00014246,2]
[383664614,1757077850987,-480.0,0.00014246,2]
[383664616,1757077850996,-480.0,0.00014246,2]
[383664618,1757077851005,-2156.32,0.00014246,2]
[383664620,1757077851015,-480.0,0.00014246,2]
[383664622,1757077851024,-480.24,0.00014246,2]
[383664624,1757077851033,-480.0,0.00014246,2]
[383664626,1757077851042,-480.0,0.00014246,2]
[383664628,1757077851051,-480.0,0.00014246,2]
[383664630,1757077851061,-480.0,0.00014246,2]
[383664632,1757077851071,-792.8,0.00014246,2]
[383664634,1757077851080,-480.0,0.00014246,2]
[383664636,1757077851089,-536.64,0.00014246,2]
[383664638,1757077851099,-480.0,0.00014246,2]
[383664640,1757077851108,-480.0,0.00014246,2]
[383664642,1757077851117,-260.25597142,0.00014246,2]
[383664644,1757077851126,-480.0,0.00014246,2]
[383664646,1757077851134,-694.08,0.00014246,2]
[383664648,1757077851146,-480.0,0.00014246,2]
[383664650,1757077851155,-480.0,0.00014246,2]
[383664652,1757077851165,-480.0,0.00014246,2]
[383664654,1757077851175,-197.99548879,0.00014246,2]
[383664656,1757077851184,-480.0,0.00014246,2]
[383664658,1757077851193,-297.82663123,0.00014246,2]
[383664660,1757077851203,-480.0,0.00014246,2]
[383664662,1757077851213,-480.0,0.00014246,2]
[383664664,1757077851223,-947.95,0.00014246,2]
[383664666,1757077851233,-480.0,0.00014246,2]
[383664668,1757077851242,-480.0,0.00014246,2]
[383664670,1757077851252,-8196.03,0.00014246,2]
[383664672,1757077851261,-480.0,0.00014246,2]
[383664674,1757077851271,-893.8,0.00014246,2]
[383664677,1757077851280,-480.0,0.00014246,2]
[383664679,1757077851290,-480.0,0.00014246,2]
[383664681,1757077851300,-480.0,0.00014246,2]
[383664683,1757077851310,-614.22369371,0.00014246,2]
[383664685,1757077851319,-480.0,0.00014246,2]
[383664687,1757077851329,-480.0,0.00014246,2]
[383664689,1757077851338,-480.0,0.00014246,2]
[383664691,1757077851347,-600.0,0.00014249,2]
[383664693,1757077851356,-620.5471961,0.00014273,2]
[383664694,1757077851366,-500.0,0.00014273,2]
[383664696,1757077851376,-500.0,0.00014273,2]
[383664699,1757077851385,-500.0,0.00014273,2]
[383664700,1757077851395,-293.2572685,0.00014344,2]
[383664702,1757077851404,-296.97,0.0001452,2]
[383664705,1757077851415,-480.0,0.0001452,2]
[383664706,1757077851424,-480.0,0.0001452,2]
[383664708,1757077851434,-480.0,0.0001452,2]
[383664710,1757077851443,-480.0,0.0001452,2]
[383664713,1757077851452,-480.0,0.0001452,2]
[383664715,1757077851462,-480.0,0.0001452,2]
[383664716,1757077851472,-480.0,0.0001452,2]
[383664718,1757077851483,-480.0,0.0001452,2]
[383664720,1757077851492,-480.82,0.0001452,2]
[383664722,1757077851501,-480.0,0.0001452,2]
[383664724,1757077851510,-480.0,0.0001452,2]
[383664726,1757077851521,-480.0,0.0001452,2]
[383664728,1757077851530,-480.0,0.0001452,2]
[383664730,1757077851539,-480.0,0.0001452,2]
[383664732,1757077851550,-480.0,0.0001452,2]
[383664734,1757077851559,-480.0,0.0001452,2]
[383664736,1757077851569,-480.0,0.0001452,2]
[383664738,1757077851578,-480.0,0.0001452,2]
[383664739,1757077851587,-480.0,0.0001452,2]
[383664741,1757077851596,-363.07,0.0001452,2]
[383664743,1757077851606,-480.0,0.0001452,2]
[383664745,1757077851615,-480.0,0.0001452,2]
[383664747,1757077851624,-480.0,0.0001452,2]
[383664749,1757077851633,-480.0,0.0001452,2]
[383664751,1757077851642,-480.0,0.0001452,2]
[383664753,1757077851651,-325.13,0.0001452,2]
[383664755,1757077851661,-480.0,0.0001452,2]
[383664757,1757077851670,-480.0,0.0001452,2]
[383664759,1757077851680,-480.0,0.0001452,2]
[383664761,1757077851689,-480.0,0.0001452,2]
[383664763,1757077851698,-480.0,0.0001452,2]
[383664765,1757077851707,-374.92,0.0001452,2]
[383664767,1757077851717,-552.69,0.0001452,2]
[383664769,1757077851726,-480.0,0.0001452,2]
[383664771,1757077851735,-314.55,0.0001452,2]
[383664773,1757077851745,-480.0,0.0001452,2]
[383664774,1757077851755,-982.97,0.0001452,2]
[383664775,1757077851763,-308.33,0.0001452,2]
[383664776,1757077851773,-480.0,0.0001452,2]
[383664777,1757077851782,-480.0,0.0001452,2]
[383664778,1757077851791,-480.0,0.0001452,2]
[383664779,1757077851800,-480.0,0.0001452,2]
[383664780,1757077851809,-480.0,0.0001452,2]
[383664781,1757077851818,-480.0,0.0001452,2]
[383664782,1757077851828,-480.0,0.0001452,2]
[383664783,1757077851837,-480.0,0.0001452,2]
[383664784,1757077851847,-480.0,0.0001452,2]
[383664785,1757077851856,-480.0,0.0001452,2]
[383664786,1757077851866,-480.0,0.0001452,2]
[383664787,1757077851875,-480.0,0.0001452,2]
[383664788,1757077851884,-480.0,0.0001452,2]
[383664789,1757077851894,-480.0,0.0001452,2]
[383664790,1757077851903,-1342.83,0.0001452,2]
[383664792,1757077851914,-811.82,0.0001452,2]
[383664794,1757077851923,-480.0,0.0001452,2]
[383664796,1757077851932,-767.37,0.0001452,2]
[383664798,1757077851942,-599.47,0.0001452,2]
[383664800,1757077851951,-1306.98,0.0001452,2]
[383664802,1757077851961,-480.0,0.0001452,2]
[383664804,1757077851970,-480.0,0.0001452,2]
[383664816,1757077852073,-693.8,0.0001452,2]
[383664818,1757077852083,-480.0,0.0001452,2]
[383664820,1757077852092,-2895.42,0.0001452,2]
[383664822,1757077852101,-480.0,0.0001452,2]
[383664824,1757077852110,-480.0,0.0001452,2]
[383664826,1757077852119,-480.0,0.0001452,2]
[383664828,1757077852129,-480.0,0.0001452,2]
[383664830,1757077852138,-430.22512589,0.0001452,2]
[383664832,1757077852148,-2156.32,0.0001452,2]
[383664834,1757077852158,-480.0,0.0001452,2]
[383664836,1757077852168,-480.24,0.0001452,2]
[383664839,1757077852178,-480.0,0.0001452,2]
[383664840,1757077852187,-480.0,0.0001452,2]
[383664842,1757077852196,-480.0,0.0001452,2]
[383664844,1757077852206,-480.0,0.0001452,2]
[383664846,1757077852215,-792.8,0.0001452,2]
[383664849,1757077852226,-480.0,0.0001452,2]
[383664850,1757077852235,-536.64,0.0001452,2]
[383664852,1757077852245,-480.0,0.0001452,2]
[383664855,1757077852254,-480.0,0.0001452,2]
[383664856,1757077852263,-480.0,0.0001452,2]
[383664858,1757077852273,-694.08,0.0001452,2]
[383664861,1757077852283,-480.0,0.0001452,2]
[383664863,1757077852292,-573.92125375,0.0001452,2]
[383664864,1757077852301,-480.0,0.0001452,2]
[383664867,1757077852311,-480.0,0.0001452,2]
[383664869,1757077852320,-480.0,0.0001452,2]
[383664871,1757077852330,-480.0,0.0001452,2]
[383664873,1757077852339,-947.95,0.0001452,2]
[383664875,1757077852347,-480.0,0.0001452,2]
[383664877,1757077852357,-480.0,0.0001452,2]
[383664879,1757077852366,-8196.03,0.0001452,2]
[383664881,1757077852375,-480.0,0.0001452,2]
[383664883,1757077852385,-893.8,0.0001452,2]
[383664885,1757077852394,-480.0,0.0001452,2]
[383664887,1757077852403,-480.0,0.0001452,2]
[383664889,1757077852413,-480.0,0.0001452,2]
[383664891,1757077852422,-480.0,0.0001452,2]
[383664893,1757077852431,-480.0,0.0001452,2]
[383664895,1757077852440,-501.13816521,0.00014521,2]
[383664897,1757077852449,-503.36595694,0.00014521,2]
[383664899,1757077852458,-1000.0,0.00014521,2]
[383664901,1757077852467,-958.432,0.00014524,2]
[383664903,1757077852481,-2153.0,0.00014524,2]
[383664905,1757077852490,-633.0,0.00014524,2]
[383664907,1757077852500,-268.44532772,0.00014544,2]
[383664909,1757077852509,-500.0,0.00014684,2]
[383664911,1757077852519,-300.63066952,0.00014684,2]
[383664913,1757077852528,-480.0,0.00014794,2]
[383664915,1757077852537,-480.0,0.00014794,2]
[383664917,1757077852546,-480.0,0.00014794,2]
[383664919,1757077852555,-480.0,0.00014794,2]
[383664921,1757077852565,-480.0,0.00014794,2]
[383664923,1757077852574,-480.0,0.00014794,2]
[383664925,1757077852584,-480.0,0.00014794,2]
[383664926,1757077852593,-480.0,0.00014794,2]
[383664929,1757077852603,-480.82,0.00014794,2]
[383664931,1757077852612,-480.0,0.00014794,2]
[383664933,1757077852621,-480.0,0.00014794,2]
[383664935,1757077852632,-480.0,0.00014794,2]
[383664937,1757077852642,-480.0,0.00014794,2]
[383664939,1757077852651,-480.0,0.00014794,2]
[383664941,1757077852660,-480.0,0.00014794,2]
[383664943,1757077852670,-480.0,0.00014794,2]
[383664945,1757077852679,-480.0,0.00014794,2]
[383664947,1757077852688,-562.66,0.00014794,2]
[383664949,1757077852697,-480.0,0.00014794,2]
[383664951,1757077852705,-480.0,0.00014794,2]
[383664953,1757077852714,-194.82633527,0.00014794,2]
[383664955,1757077852723,-480.0,0.00014794,2]
[383664957,1757077852733,-480.0,0.00014794,2]
[383664959,1757077852742,-480.0,0.00014794,2]
[383664961,1757077852751,-480.0,0.00014794,2]
[383664963,1757077852760,-480.0,0.00014794,2]
[383664965,1757077852769,-480.0,0.00014794,2]
[383664968,1757077852779,-480.0,0.00014794,2]
[383664970,1757077852788,-480.0,0.00014794,2]
[383664972,1757077852797,-552.69,0.00014794,2]
[383664974,1757077852806,-480.0,0.00014794,2]
[383664976,1757077852815,-480.0,0.00014794,2]
[383664978,1757077852824,-982.97,0.00014794,2]
[383664980,1757077852835,-480.0,0.00014794,2]
[383664982,1757077852844,-480.0,0.00014794,2]
[383664984,1757077852853,-389.18633938,0.00014794,2]
[383664986,1757077852862,-480.0,0.00014794,2]
[383664988,1757077852871,-480.0,0.00014794,2]
[383664990,1757077852880,-480.0,0.00014794,2]
[383664992,1757077852889,-480.0,0.00014794,2]
[383664994,1757077852899,-480.0,0.00014794,2]
[383664996,1757077852908,-616.92776068,0.00014794,2]
[383664998,1757077852917,-480.0,0.00014794,2]
[383665000,1757077852926,-480.0,0.00014794,2]
[383665002,1757077852936,-480.0,0.00014794,2]
[383665004,1757077852946,-480.0,0.00014794,2]
[383665006,1757077852955,-1342.83,0.00014794,2]
[383665007,1757077852964,-811.82,0.00014794,2]
[383665010,1757077852974,-480.0,0.00014794,2]
[383665012,1757077852983,-767.37,0.00014794,2]
[383665014,1757077852992,-599.47,0.00014794,2]
[383665016,1757077853002,-1306.98,0.00014794,2]
[383665017,1757077853011,-253.02,0.00014794,2]
[383665020,1757077853021,-480.0,0.00014794,2]
[383665022,1757077853030,-693.8,0.00014794,2]
[383665024,1757077853040,-616.83800703,0.00014794,2]
[383665026,1757077853049,-2895.42,0.00014794,2]
[383665027,1757077853058,-480.0,0.00014794,2]
[383665029,1757077853067,-480.0,0.00014794,2]
[383665032,1757077853076,-480.0,0.00014794,2]
[383665033,1757077853085,-480.0,0.00014794,2]
[383665036,1757077853095,-2156.32,0.00014794,2]
[383665037,1757077853104,-480.0,0.00014794,2]
[383665039,1757077853113,-480.24,0.00014794,2]
[383665041,1757077853122,-480.0,0.00014794,2]
[383665043,1757077853131,-480.0,0.00014794,2]
[383665045,1757077853141,-480.0,0.00014794,2]
[383665047,1757077853151,-480.0,0.00014794,2]
[383665049,1757077853160,-792.8,0.00014794,2]
[383665051,1757077853170,-480.0,0.00014794,2]
[383665053,1757077853179,-536.64,0.00014794,2]
[383665055,1757077853188,-480.0,0.00014794,2]
[383665058,1757077853197,-480.0,0.00014794,2]
[383665060,1757077853206,-570.82,0.00014794,2]
[383665061,1757077853216,-480.0,0.00014794,2]
[383665063,1757077853225,-694.08,0.00014794,2]
[383665066,1757077853235,-480.0,0.00014794,2]
[383665067,1757077853244,-480.0,0.00014794,2]
[383665069,1757077853254,-480.0,0.00014794,2]
[383665071,1757077853263,-533.43,0.00014794,2]
[383665074,1757077853273,-947.95,0.00014794,2]
[383665076,1757077853282,-522.15,0.00014794,2]
[383665077,1757077853292,-480.0,0.00014794,2]
[383665079,1757077853301,-8196.03,0.00014794,2]
[383665082,1757077853310,-480.0,0.00014794,2]
[383665084,1757077853320,-893.8,0.00014794,2]
[383665086,1757077853329,-480.0,0.00014794,2]
[383665088,1757077853339,-480.0,0.00014794,2]
[383665090,1757077853348,-480.0,0.00014794,2]
[383665091,1757077853357,-480.0,0.00014794,2]
[383665094,1757077853367,-480.0,0.00014794,2]
[383665096,1757077853377,-187.8399385,0.00014796,2]
[383665097,1757077853386,-504.07,0.000148,2]
[383665100,1757077853396,-153.71,0.000148,2]
[383665102,1757077853406,-153.71,0.000148,2]
[383665104,1757077853415,-153.71,0.000148,2]
[383665106,1757077853424,-153.71,0.000148,2]
[383665108,1757077853434,-153.71,0.000148,2]
[383665110,1757077853444,-153.71,0.000148,2]
[383665112,1757077853453,-153.71,0.000148,2]
[383665114,1757077853462,-1000.0,0.00014821,2]
[383665116,1757077853474,-504.92672541,0.00014821,2]
[383665118,1757077853484,-338.58,0.00014915,2]
[383665120,1757077853493,-338.58,0.0001493,2]
[383665122,1757077853503,-160.0,0.00015,2]
[383665123,1757077853511,-10569.94136612,0.00015014,2]
[383665126,1757077853522,-480.0,0.00015068,2]
[383665128,1757077853531,-480.0,0.00015068,2]
[383665130,1757077853541,-480.0,0.00015068,2]
[383665132,1757077853552,-480.0,0.00015068,2]
[383665134,1757077853561,-480.0,0.00015068,2]
[383665136,1757077853571,-480.0,0.00015068,2]
[383665138,1757077853580,-480.0,0.00015068,2]
[383665140,1757077853590,-480.0,0.00015068,2]
[383665142,1757077853599,-480.82,0.00015068,2]
[383665144,1757077853608,-480.0,0.00015068,2]
[383665146,1757077853617,-480.0,0.00015068,2]
[383665148,1757077853627,-480.0,0.00015068,2]
[383665150,1757077853636,-480.0,0.00015068,2]
[383665152,1757077853645,-480.0,0.00015068,2]